[Event "Late-Titled-Tuesday-Blitz-August-29-2023"]
[Site "Chess.com"]
[Date "2023.08.29"]
[Round "10"]
[White "Garmendiarov"]
[Black "Valeron87"]
[Result "0-1"]
[WhiteElo "2333"]
[BlackElo "2465"]
[TimeControl "180+1"]
[EndTime "15:53:02 PDT"]
[Termination "Valeron87 won on time"]

1. e4 {[%clk 0:03:00.9]} 1... c5 {[%clk 0:02:59.6]} 2. Nf3 {[%clk 0:03:01.2]}
2... Nc6 {[%clk 0:03:00.2]} 3. Bb5 {[%clk 0:03:01]} 3... Nf6 {[%clk 0:02:59.5]}
4. Bxc6 {[%clk 0:02:55]} 4... dxc6 {[%clk 0:02:59.3]} 5. d3 {[%clk 0:02:55.3]}
5... g6 {[%clk 0:02:59.1]} 6. h3 {[%clk 0:02:55.1]} 6... Bg7 {[%clk 0:02:59.2]}
7. Nc3 {[%clk 0:02:55.8]} 7... O-O {[%clk 0:02:59.2]} 8. Be3 {[%clk 0:02:56.5]}
8... b6 {[%clk 0:02:59]} 9. Qd2 {[%clk 0:02:56.8]} 9... Nd7 {[%clk 0:02:50.9]}
10. Bh6 {[%clk 0:02:55.2]} 10... e5 {[%clk 0:02:51.1]} 11. a4 {[%clk 0:02:51.2]}
11... Re8 {[%clk 0:02:45.2]} 12. Bxg7 {[%clk 0:02:49.2]} 12... Kxg7 {[%clk
0:02:45.6]} 13. O-O {[%clk 0:02:49.4]} 13... Nf8 {[%clk 0:02:45.5]} 14. a5
{[%clk 0:02:45.8]} 14... Bd7 {[%clk 0:02:24.7]} 15. Na4 {[%clk 0:02:23.4]} 15...
f6 {[%clk 0:02:22.9]} 16. b4 {[%clk 0:02:04.2]} 16... cxb4 {[%clk 0:02:14.9]}
17. Qxb4 {[%clk 0:02:05.1]} 17... c5 {[%clk 0:02:10.1]} 18. Qb2 {[%clk
0:01:46.5]} 18... Rb8 {[%clk 0:02:03]} 19. axb6 {[%clk 0:01:38.9]} 19... axb6
{[%clk 0:02:02.6]} 20. Nd2 {[%clk 0:01:38.2]} 20... Ne6 {[%clk 0:02:01.1]} 21.
Nc3 {[%clk 0:01:29.7]} 21... Bc6 {[%clk 0:01:47.7]} 22. Nc4 {[%clk 0:01:24.7]}
22... b5 {[%clk 0:01:42]} 23. Ne3 {[%clk 0:00:57.3]} 23... Nd4 {[%clk
0:01:40.9]} 24. Ncd5 {[%clk 0:00:43.8]} 24... b4 {[%clk 0:01:32.3]} 25. Ra7+
{[%clk 0:00:42.3]} 25... Kh8 {[%clk 0:01:13.7]} 26. Rfa1 {[%clk 0:00:35.7]}
26... f5 {[%clk 0:01:07.8]} 27. Rf7 {[%clk 0:00:15]} 27... Rf8 {[%clk
0:00:43.3]} 28. Raa7 {[%clk 0:00:14.1]} 28... Rxf7 {[%clk 0:00:42.7]} 29. Rxf7
{[%clk 0:00:15]} 29... f4 {[%clk 0:00:27]} 30. Nf6 {[%clk 0:00:11.2]} 30... Rb7
{[%clk 0:00:27.4]} 31. Rxb7 {[%clk 0:00:08.1]} 31... Bxb7 {[%clk 0:00:28.3]} 32.
Ned5 {[%clk 0:00:07.6]} 32... f3 {[%clk 0:00:19.6]} 33. gxf3 {[%clk 0:00:05.4]}
33... Bxd5 {[%clk 0:00:16]} 34. Nxd5 {[%clk 0:00:03.9]} 34... Qg5+ {[%clk
0:00:16.4]} 35. Kf1 {[%clk 0:00:03.1]} 35... Nxf3 {[%clk 0:00:16.6]} 0-1

[Event "Late-Titled-Tuesday-Blitz-August-29-2023"]
[Site "Chess.com"]
[Date "2023.08.29"]
[Round "10"]
[White "Akhayan"]
[Black "only_strong_moves"]
[Result "0-1"]
[WhiteElo "2328"]
[BlackElo "2548"]
[TimeControl "180+1"]
[EndTime "15:53:06 PDT"]
[Termination "only_strong_moves won by resignation"]

1. e4 {[%clk 0:03:00.9]} 1... e6 {[%clk 0:02:59.9]} 2. d4 {[%clk 0:03:00.2]}
2... d5 {[%clk 0:03:00.4]} 3. Nc3 {[%clk 0:03:00.7]} 3... Bb4 {[%clk 0:03:00.2]}
4. exd5 {[%clk 0:02:56.8]} 4... exd5 {[%clk 0:02:59.9]} 5. Bd3 {[%clk
0:02:55.1]} 5... Nf6 {[%clk 0:02:58.4]} 6. Ne2 {[%clk 0:02:54.4]} 6... c5 {[%clk
0:02:56.4]} 7. dxc5 {[%clk 0:02:46.7]} 7... Nbd7 {[%clk 0:02:55.6]} 8. O-O
{[%clk 0:02:45.8]} 8... h6 {[%clk 0:02:41.6]} 9. Be3 {[%clk 0:02:35.9]} 9...
Nxc5 {[%clk 0:02:20.3]} 10. a3 {[%clk 0:02:34]} 10... Nxd3 {[%clk 0:02:07.2]}
11. Qxd3 {[%clk 0:02:27.8]} 11... Bxc3 {[%clk 0:02:07.2]} 12. Nxc3 {[%clk
0:02:26.7]} 12... O-O {[%clk 0:02:05.2]} 13. Rad1 {[%clk 0:02:25.6]} 13... Be6
{[%clk 0:02:05.6]} 14. Bd4 {[%clk 0:02:24.8]} 14... Rc8 {[%clk 0:02:00]} 15. h3
{[%clk 0:02:06]} 15... b6 {[%clk 0:01:56.9]} 16. Rfe1 {[%clk 0:02:04.1]} 16...
Re8 {[%clk 0:01:19.4]} 17. Qf3 {[%clk 0:02:01.2]} 17... Nh7 {[%clk 0:01:06.8]}
18. Qg3 {[%clk 0:01:52.1]} 18... Qg5 {[%clk 0:01:03.7]} 19. Qxg5 {[%clk
0:01:50]} 19... Nxg5 {[%clk 0:01:04.6]} 20. Be3 {[%clk 0:01:40.2]} 20... Nh7
{[%clk 0:01:02.3]} 21. Rd2 {[%clk 0:01:16.9]} 21... Nf6 {[%clk 0:00:53.5]} 22.
Red1 {[%clk 0:01:16.2]} 22... Rc4 {[%clk 0:00:48.7]} 23. Bd4 {[%clk 0:01:15.2]}
23... Nd7 {[%clk 0:00:44.5]} 24. Be3 {[%clk 0:01:05.3]} 24... Nf8 {[%clk
0:00:32.7]} 25. Kf1 {[%clk 0:00:53.7]} 25... Rec8 {[%clk 0:00:28.1]} 26. f3
{[%clk 0:00:44.5]} 26... R4c6 {[%clk 0:00:27.1]} 27. Kf2 {[%clk 0:00:42.2]}
27... Ng6 {[%clk 0:00:23.7]} 28. Bd4 {[%clk 0:00:40.2]} 28... Ne7 {[%clk
0:00:23]} 29. Be3 {[%clk 0:00:37.3]} 29... a5 {[%clk 0:00:18.9]} 30. Rc1 {[%clk
0:00:33]} 30... Nf5 {[%clk 0:00:17.6]} 31. Ne2 {[%clk 0:00:32.6]} 31... Nd6
{[%clk 0:00:13.9]} 32. Nd4 {[%clk 0:00:32.3]} 32... R6c7 {[%clk 0:00:06.4]} 33.
Re1 {[%clk 0:00:32.2]} 33... Nc4 {[%clk 0:00:06.3]} 34. b3 {[%clk 0:00:31.8]}
34... Nxd2 {[%clk 0:00:06.4]} 35. Bxd2 {[%clk 0:00:31.2]} 35... Rxc2 {[%clk
0:00:06.8]} 36. Nxc2 {[%clk 0:00:30.7]} 36... Rxc2 {[%clk 0:00:07.7]} 37. Ke3
{[%clk 0:00:28.4]} 37... d4+ {[%clk 0:00:07.2]} 38. Kd3 {[%clk 0:00:28.3]} 38...
Bf5+ {[%clk 0:00:07.3]} 39. Re4 {[%clk 0:00:23.6]} 39... Bxe4+ {[%clk 0:00:07]}
40. fxe4 {[%clk 0:00:24.2]} 40... Ra2 {[%clk 0:00:06.7]} 41. a4 {[%clk
0:00:23.9]} 41... Rb2 {[%clk 0:00:06.7]} 0-1

[Event "Late-Titled-Tuesday-Blitz-August-29-2023"]
[Site "Chess.com"]
[Date "2023.08.29"]
[Round "10"]
[White "EsmeraldasAnderson03"]
[Black "Berardino"]
[Result "1-0"]
[WhiteElo "2448"]
[BlackElo "2675"]
[TimeControl "180+1"]
[EndTime "15:53:08 PDT"]
[Termination "EsmeraldasAnderson03 won by resignation"]

1. d4 {[%clk 0:03:00.9]} 1... Nf6 {[%clk 0:02:59.5]} 2. Nf3 {[%clk 0:03:01]}
2... g6 {[%clk 0:02:59.1]} 3. Bf4 {[%clk 0:03:00.8]} 3... Bg7 {[%clk 0:02:58.4]}
4. h3 {[%clk 0:03:01.4]} 4... O-O {[%clk 0:02:58.9]} 5. e3 {[%clk 0:03:02]} 5...
c5 {[%clk 0:02:59.4]} 6. c3 {[%clk 0:03:02]} 6... d6 {[%clk 0:02:58.8]} 7. Nbd2
{[%clk 0:03:02.2]} 7... b6 {[%clk 0:02:59]} 8. Be2 {[%clk 0:03:01.2]} 8... Bb7
{[%clk 0:02:59.5]} 9. O-O {[%clk 0:03:01.1]} 9... Nbd7 {[%clk 0:03:00.1]} 10.
Re1 {[%clk 0:03:00.7]} 10... a6 {[%clk 0:02:57.6]} 11. Bf1 {[%clk 0:03:00.6]}
11... Ne4 {[%clk 0:02:52.4]} 12. Bh2 {[%clk 0:03:00.1]} 12... b5 {[%clk
0:02:46.6]} 13. a4 {[%clk 0:02:59]} 13... Qb6 {[%clk 0:02:38.5]} 14. a5 {[%clk
0:02:50.5]} 14... Qc7 {[%clk 0:02:36.8]} 15. Nxe4 {[%clk 0:02:39.4]} 15... Bxe4
{[%clk 0:02:36.5]} 16. Nd2 {[%clk 0:02:39.9]} 16... Bb7 {[%clk 0:02:34.3]} 17.
Nb3 {[%clk 0:02:31.5]} 17... cxd4 {[%clk 0:02:25]} 18. exd4 {[%clk 0:02:30.1]}
18... e5 {[%clk 0:02:07.7]} 19. dxe5 {[%clk 0:02:20.6]} 19... dxe5 {[%clk
0:02:08.3]} 20. Qe2 {[%clk 0:02:11.4]} 20... Rfe8 {[%clk 0:02:03.6]} 21. Red1
{[%clk 0:02:06.6]} 21... Nc5 {[%clk 0:01:53.1]} 22. Nxc5 {[%clk 0:01:59.3]}
22... Qxc5 {[%clk 0:01:54]} 23. Qe3 {[%clk 0:01:58.7]} 23... Qxe3 {[%clk
0:01:45.9]} 24. fxe3 {[%clk 0:01:58.7]} 24... Rad8 {[%clk 0:01:41.5]} 25. Kf2
{[%clk 0:01:56.5]} 25... f6 {[%clk 0:01:40.2]} 26. Be2 {[%clk 0:01:56.1]} 26...
Bf8 {[%clk 0:01:35.9]} 27. Bf3 {[%clk 0:01:53.5]} 27... Bxf3 {[%clk 0:01:27.2]}
28. gxf3 {[%clk 0:01:54.4]} 28... Bc5 {[%clk 0:01:25.8]} 29. Ke2 {[%clk
0:01:54.4]} 29... Kf7 {[%clk 0:01:25.2]} 30. e4 {[%clk 0:01:51.2]} 30... Ke6
{[%clk 0:01:23.4]} 31. Bg1 {[%clk 0:01:51.3]} 31... Bxg1 {[%clk 0:01:17.5]} 32.
Rxg1 {[%clk 0:01:52.2]} 32... b4 {[%clk 0:00:40.9]} 33. c4 {[%clk 0:01:51.2]}
33... Rd4 {[%clk 0:00:36.8]} 34. b3 {[%clk 0:01:46.8]} 34... f5 {[%clk
0:00:30.7]} 35. Rad1 {[%clk 0:01:31.9]} 35... fxe4 {[%clk 0:00:24.4]} 36. Rxd4
{[%clk 0:01:31.2]} 36... exf3+ {[%clk 0:00:22.9]} 37. Kxf3 {[%clk 0:01:30.9]}
37... exd4 {[%clk 0:00:23.2]} 38. Ke4 {[%clk 0:01:28.6]} 38... Rd8 {[%clk
0:00:17.2]} 39. Rd1 {[%clk 0:01:28]} 39... g5 {[%clk 0:00:14.4]} 40. Rxd4 {[%clk
0:01:27.6]} 40... Rf8 {[%clk 0:00:13.9]} 41. Rd5 {[%clk 0:01:24.4]} 41... Rf4+
{[%clk 0:00:13.1]} 42. Ke3 {[%clk 0:01:24.4]} 42... Rh4 {[%clk 0:00:13.3]} 43.
Rxg5 {[%clk 0:01:23.1]} 43... Rxh3+ {[%clk 0:00:13.3]} 44. Kd4 {[%clk
0:01:23.7]} 44... Rxb3 {[%clk 0:00:13.5]} 45. Rh5 {[%clk 0:01:23.8]} 45... Rb1
{[%clk 0:00:08.5]} 46. Rxh7 {[%clk 0:01:08.1]} 46... b3 {[%clk 0:00:06.5]} 47.
Kc3 {[%clk 0:01:02.6]} 47... Ra1 {[%clk 0:00:05.2]} 48. Rh6+ {[%clk 0:01:01.7]}
48... Kd7 {[%clk 0:00:04.5]} 49. Rxa6 {[%clk 0:01:02.2]} 49... Rb1 {[%clk
0:00:04.3]} 50. Rb6 {[%clk 0:01:01.9]} 50... Ra1 {[%clk 0:00:04.3]} 51. Rb5
{[%clk 0:01:01.7]} 51... Ra3 {[%clk 0:00:03.5]} 52. Kb2 {[%clk 0:01:01.5]} 52...
Ra4 {[%clk 0:00:03.6]} 53. Kxb3 {[%clk 0:01:01.9]} 53... Ra1 {[%clk 0:00:04.2]}
54. Kb4 {[%clk 0:01:02.6]} 54... Kc6 {[%clk 0:00:04.6]} 55. Rb6+ {[%clk
0:01:02.8]} 55... Kc7 {[%clk 0:00:04.9]} 56. Rh6 {[%clk 0:01:03.2]} 56... Rg1
{[%clk 0:00:04.3]} 57. Kb5 {[%clk 0:01:02.6]} 57... Rb1+ {[%clk 0:00:02]} 58.
Kc5 {[%clk 0:01:03]} 58... Kb7 {[%clk 0:00:02.6]} 59. Rb6+ {[%clk 0:01:01.2]}
1-0

[Event "Late-Titled-Tuesday-Blitz-August-29-2023"]
[Site "Chess.com"]
[Date "2023.08.29"]
[Round "10"]
[White "Rutricks"]
[Black "Athanasios2"]
[Result "1-0"]
[WhiteElo "2634"]
[BlackElo "2705"]
[TimeControl "180+1"]
[EndTime "15:53:12 PDT"]
[Termination "Rutricks won by resignation"]

1. b3 {[%clk 0:02:56.2]} 1... d5 {[%clk 0:02:59.8]} 2. Bb2 {[%clk 0:02:57.1]}
2... c5 {[%clk 0:03:00.2]} 3. e3 {[%clk 0:02:55.7]} 3... Nc6 {[%clk 0:03:00.4]}
4. Bb5 {[%clk 0:02:55.4]} 4... Bd7 {[%clk 0:03:00.1]} 5. Nf3 {[%clk 0:02:55.2]}
5... Nf6 {[%clk 0:03:00]} 6. O-O {[%clk 0:02:55.3]} 6... g6 {[%clk 0:03:00.6]}
7. c4 {[%clk 0:02:55.3]} 7... dxc4 {[%clk 0:02:58.1]} 8. Bxc4 {[%clk 0:02:53.9]}
8... Bg7 {[%clk 0:02:58.7]} 9. Nc3 {[%clk 0:02:54]} 9... O-O {[%clk 0:02:59.1]}
10. Rc1 {[%clk 0:02:54.6]} 10... Rc8 {[%clk 0:02:58.9]} 11. h3 {[%clk
0:02:54.3]} 11... b6 {[%clk 0:02:56.2]} 12. Ba6 {[%clk 0:02:54.3]} 12... Rb8
{[%clk 0:02:55.1]} 13. d4 {[%clk 0:02:54.1]} 13... cxd4 {[%clk 0:02:54.4]} 14.
Nxd4 {[%clk 0:02:54.8]} 14... Nxd4 {[%clk 0:02:49.4]} 15. Qxd4 {[%clk
0:02:55.7]} 15... Bc6 {[%clk 0:02:27.4]} 16. Qc4 {[%clk 0:02:55.7]} 16... Bb7
{[%clk 0:02:18.6]} 17. Rfd1 {[%clk 0:02:55.9]} 17... Qc8 {[%clk 0:02:11.2]} 18.
Qxc8 {[%clk 0:02:51.9]} 18... Rfxc8 {[%clk 0:02:10.8]} 19. Bxb7 {[%clk
0:02:44.1]} 19... Rxb7 {[%clk 0:02:11.7]} 20. Nb5 {[%clk 0:02:44.9]} 20... Rxc1
{[%clk 0:02:07.1]} 21. Rxc1 {[%clk 0:02:45.8]} 21... a6 {[%clk 0:01:45.5]} 22.
Rc8+ {[%clk 0:02:45.8]} 22... Bf8 {[%clk 0:01:45.4]} 23. Bxf6 {[%clk 0:02:16.8]}
23... axb5 {[%clk 0:01:42.2]} 24. Bd4 {[%clk 0:02:14.4]} 24... Ra7 {[%clk
0:01:32.9]} 25. Rb8 {[%clk 0:02:12.2]} 25... Rxa2 {[%clk 0:01:26.3]} 26. Rxb6
{[%clk 0:02:12.3]} 26... f6 {[%clk 0:01:18.4]} 27. f4 {[%clk 0:02:00.3]} 27...
g5 {[%clk 0:00:45.5]} 28. f5 {[%clk 0:01:40.9]} 28... h5 {[%clk 0:00:42.5]} 29.
g4 {[%clk 0:01:40.9]} 29... Ra5 {[%clk 0:00:35.7]} 30. Bc3 {[%clk 0:01:24]}
30... Ra7 {[%clk 0:00:35.6]} 31. Rxb5 {[%clk 0:01:24.2]} 31... hxg4 {[%clk
0:00:36.1]} 32. hxg4 {[%clk 0:01:24.3]} 32... Kf7 {[%clk 0:00:37]} 33. Rb6
{[%clk 0:01:22.4]} 33... e5 {[%clk 0:00:26.8]} 34. fxe6+ {[%clk 0:01:21.7]}
34... Kg6 {[%clk 0:00:27.5]} 35. Bd4 {[%clk 0:01:17.6]} 35... Rc7 {[%clk
0:00:23.5]} 36. b4 {[%clk 0:01:02.9]} 36... Be7 {[%clk 0:00:21.4]} 37. b5 {[%clk
0:01:02.8]} 37... f5 {[%clk 0:00:21.8]} 38. Rc6 {[%clk 0:00:49.9]} 38... Rb7
{[%clk 0:00:15.9]} 39. b6 {[%clk 0:00:50.5]} 39... Rb8 {[%clk 0:00:14.3]} 40.
Be5 {[%clk 0:00:41.7]} 40... Rb7 {[%clk 0:00:12.6]} 41. Rc7 {[%clk 0:00:38.6]}
41... Rxb6 {[%clk 0:00:13]} 42. Rxe7 {[%clk 0:00:38.9]} 42... fxg4 {[%clk
0:00:13.7]} 43. Rg7+ {[%clk 0:00:36.2]} 43... Kf5 {[%clk 0:00:14.1]} 44. e7
{[%clk 0:00:34.1]} 44... Re6 {[%clk 0:00:14.6]} 45. Bd6 {[%clk 0:00:34.7]} 45...
Rxe3 {[%clk 0:00:10.7]} 46. Rg8 {[%clk 0:00:34.2]} 1-0

[Event "Late-Titled-Tuesday-Blitz-August-29-2023"]
[Site "Chess.com"]
[Date "2023.08.29"]
[Round "10"]
[White "Mikhail_Golubev"]
[Black "FaustinoOro"]
[Result "0-1"]
[WhiteElo "2595"]
[BlackElo "2872"]
[TimeControl "180+1"]
[EndTime "15:53:16 PDT"]
[Termination "FaustinoOro won on time"]

1. e4 {[%clk 0:03:00.9]} 1... c5 {[%clk 0:02:57.1]} 2. Nf3 {[%clk 0:03:00.5]}
2... d6 {[%clk 0:02:56.9]} 3. d4 {[%clk 0:03:00.6]} 3... cxd4 {[%clk 0:02:57.8]}
4. Nxd4 {[%clk 0:03:00.9]} 4... Nf6 {[%clk 0:02:58.5]} 5. Nc3 {[%clk 0:03:01]}
5... a6 {[%clk 0:02:58.9]} 6. Bc4 {[%clk 0:03:00.8]} 6... e6 {[%clk 0:02:57.7]}
7. O-O {[%clk 0:02:59.8]} 7... Be7 {[%clk 0:02:53.6]} 8. Bb3 {[%clk 0:02:59.7]}
8... O-O {[%clk 0:02:53.2]} 9. f4 {[%clk 0:02:59.9]} 9... Nbd7 {[%clk
0:02:48.9]} 10. Be3 {[%clk 0:02:56.2]} 10... Nc5 {[%clk 0:02:48.5]} 11. Qf3
{[%clk 0:02:54.1]} 11... Qc7 {[%clk 0:02:37.6]} 12. g4 {[%clk 0:02:52.7]} 12...
b5 {[%clk 0:02:31.3]} 13. g5 {[%clk 0:02:52.5]} 13... Nfxe4 {[%clk 0:02:17.1]}
14. Nxe4 {[%clk 0:02:52.2]} 14... Bb7 {[%clk 0:02:17.7]} 15. Nxe6 {[%clk
0:02:52.3]} 15... fxe6 {[%clk 0:02:10.3]} 16. Nxc5 {[%clk 0:02:49.4]} 16... dxc5
{[%clk 0:02:01.8]} 17. Bxe6+ {[%clk 0:02:47.9]} 17... Kh8 {[%clk 0:02:02]} 18.
Bd5 {[%clk 0:02:48.1]} 18... Bxd5 {[%clk 0:01:59.3]} 19. Qxd5 {[%clk 0:02:49]}
19... Rad8 {[%clk 0:01:58.2]} 20. Qg2 {[%clk 0:02:43.7]} 20... Rde8 {[%clk
0:01:53.1]} 21. Rae1 {[%clk 0:02:35.4]} 21... c4 {[%clk 0:01:52.6]} 22. Kh1
{[%clk 0:02:15.4]} 22... Rf5 {[%clk 0:01:43]} 23. Bd4 {[%clk 0:01:55.9]} 23...
Ref8 {[%clk 0:01:19.5]} 24. g6 {[%clk 0:01:30.3]} 24... h6 {[%clk 0:01:06.5]}
25. Re6 {[%clk 0:00:22.8]} 25... Bd6 {[%clk 0:00:47.6]} 26. Rfe1 {[%clk
0:00:15.2]} 26... Rxf4 {[%clk 0:00:40.6]} 27. Rxd6 {[%clk 0:00:15.2]} 27... Qxd6
{[%clk 0:00:32.7]} 28. Be5 {[%clk 0:00:12.8]} 28... Qe7 {[%clk 0:00:29.7]} 29.
Qd2 {[%clk 0:00:12.5]} 29... Qb7+ {[%clk 0:00:26.2]} 30. Kg1 {[%clk 0:00:11.7]}
30... Rg4+ {[%clk 0:00:26.4]} 31. Bg3 {[%clk 0:00:11.9]} 31... Rxg6 {[%clk
0:00:25.5]} 32. c3 {[%clk 0:00:10.4]} 32... Qf3 {[%clk 0:00:24.4]} 33. Qg2
{[%clk 0:00:07.4]} 33... Qxg2+ {[%clk 0:00:21.1]} 34. Kxg2 {[%clk 0:00:08.3]}
34... Rd8 {[%clk 0:00:21.5]} 35. Re2 {[%clk 0:00:08.1]} 35... Rg5 {[%clk
0:00:19.7]} 36. Kf3 {[%clk 0:00:07.9]} 36... Rgd5 {[%clk 0:00:20]} 37. Bf4
{[%clk 0:00:08]} 37... Rd1 {[%clk 0:00:16.1]} 38. Be3 {[%clk 0:00:07]} 38...
R1d3 {[%clk 0:00:13.4]} 39. Kf2 {[%clk 0:00:01.7]} 39... Re8 {[%clk 0:00:13.1]}
0-1

[Event "Late-Titled-Tuesday-Blitz-August-29-2023"]
[Site "Chess.com"]
[Date "2023.08.29"]
[Round "10"]
[White "artin10862"]
[Black "DanielNaroditsky"]
[Result "1/2-1/2"]
[WhiteElo "2891"]
[BlackElo "3100"]
[TimeControl "180+1"]
[EndTime "15:53:21 PDT"]
[Termination "Game drawn by repetition"]

1. Nf3 {[%clk 0:03:00.9]} 1... Nf6 {[%clk 0:03:00.9]} 2. c4 {[%clk 0:03:00.3]}
2... g6 {[%clk 0:03:01.1]} 3. Nc3 {[%clk 0:03:00.5]} 3... Bg7 {[%clk 0:03:01.9]}
4. e4 {[%clk 0:03:00.7]} 4... d6 {[%clk 0:03:02.7]} 5. d4 {[%clk 0:03:01.2]}
5... O-O {[%clk 0:03:03.2]} 6. Be2 {[%clk 0:03:01.3]} 6... e5 {[%clk 0:03:03.3]}
7. O-O {[%clk 0:02:59.5]} 7... exd4 {[%clk 0:03:01.9]} 8. Nxd4 {[%clk
0:02:59.4]} 8... Re8 {[%clk 0:03:02.8]} 9. f3 {[%clk 0:02:52.3]} 9... c6 {[%clk
0:03:03.2]} 10. Nc2 {[%clk 0:02:38.6]} 10... Nh5 {[%clk 0:02:51.5]} 11. Be3
{[%clk 0:02:32.4]} 11... f5 {[%clk 0:02:47.5]} 12. Bd4 {[%clk 0:02:14.7]} 12...
Be5 {[%clk 0:02:24.1]} 13. exf5 {[%clk 0:02:00.2]} 13... Bxf5 {[%clk 0:02:16.2]}
14. Bxe5 {[%clk 0:01:54.5]} 14... dxe5 {[%clk 0:02:14]} 15. Qxd8 {[%clk
0:01:49.1]} 15... Rxd8 {[%clk 0:02:14.9]} 16. Ne3 {[%clk 0:01:46.3]} 16... Nf4
{[%clk 0:02:15.4]} 17. Rad1 {[%clk 0:01:41.3]} 17... Nd7 {[%clk 0:01:58]} 18. g3
{[%clk 0:01:35.7]} 18... Nxe2+ {[%clk 0:01:54.6]} 19. Nxe2 {[%clk 0:01:36]}
19... Nc5 {[%clk 0:01:54.2]} 20. Nc3 {[%clk 0:01:34.5]} 20... Be6 {[%clk
0:01:23.4]} 21. b3 {[%clk 0:01:12.7]} 21... a5 {[%clk 0:01:15.4]} 22. Rxd8+
{[%clk 0:01:07.6]} 22... Rxd8 {[%clk 0:01:16.3]} 23. Rd1 {[%clk 0:01:07.8]}
23... Rd4 {[%clk 0:01:14]} 24. Kf1 {[%clk 0:00:33.2]} 24... Kf7 {[%clk 0:01:10]}
25. Ke2 {[%clk 0:00:32.2]} 25... Ke7 {[%clk 0:01:03]} 26. Nc2 {[%clk 0:00:24.8]}
26... Rxd1 {[%clk 0:01:03.3]} 27. Kxd1 {[%clk 0:00:24.5]} 27... g5 {[%clk
0:00:37.4]} 28. Ne3 {[%clk 0:00:21.3]} 28... h6 {[%clk 0:00:29.3]} 29. Ne4
{[%clk 0:00:17]} 29... Nd7 {[%clk 0:00:28.8]} 30. Kd2 {[%clk 0:00:17]} 30... b5
{[%clk 0:00:23.1]} 31. a3 {[%clk 0:00:10.2]} 31... bxc4 {[%clk 0:00:17.8]} 32.
bxc4 {[%clk 0:00:06.3]} 32... Nb6 {[%clk 0:00:14.3]} 33. Kc3 {[%clk 0:00:06.7]}
33... Na4+ {[%clk 0:00:13.1]} 34. Kb3 {[%clk 0:00:06.6]} 34... Nb6 {[%clk
0:00:14]} 35. Nc5 {[%clk 0:00:07]} 35... Bc8 {[%clk 0:00:09.6]} 36. Kc3 {[%clk
0:00:06.8]} 36... Kf6 {[%clk 0:00:05.6]} 37. Ne4+ {[%clk 0:00:05.8]} 37... Ke7
{[%clk 0:00:05.9]} 38. Nc5 {[%clk 0:00:06.1]} 38... Kf6 {[%clk 0:00:04.5]} 39.
Ne4+ {[%clk 0:00:06.5]} 39... Ke7 {[%clk 0:00:05.3]} 40. Nc5 {[%clk 0:00:06.7]}
1/2-1/2

[Event "Late-Titled-Tuesday-Blitz-August-29-2023"]
[Site "Chess.com"]
[Date "2023.08.29"]
[Round "10"]
[White "LastGladiator1"]
[Black "Msb2"]
[Result "0-1"]
[WhiteElo "2908"]
[BlackElo "3020"]
[TimeControl "180+1"]
[EndTime "15:53:21 PDT"]
[Termination "Msb2 won on time"]

1. b3 {[%clk 0:03:00.9]} 1... d5 {[%clk 0:03:00.2]} 2. Bb2 {[%clk 0:03:01.3]}
2... Bf5 {[%clk 0:03:00.9]} 3. Nf3 {[%clk 0:03:01.4]} 3... e6 {[%clk 0:03:01.1]}
4. g3 {[%clk 0:03:01]} 4... Nf6 {[%clk 0:03:01.5]} 5. Bg2 {[%clk 0:03:01.7]}
5... h6 {[%clk 0:03:00.1]} 6. O-O {[%clk 0:03:01.6]} 6... Be7 {[%clk 0:02:59.1]}
7. c4 {[%clk 0:03:01.8]} 7... c6 {[%clk 0:02:58.5]} 8. d4 {[%clk 0:02:59.4]}
8... O-O {[%clk 0:02:58.5]} 9. Nc3 {[%clk 0:02:57.6]} 9... Nbd7 {[%clk 0:02:59]}
10. Ne5 {[%clk 0:02:54.3]} 10... Bd6 {[%clk 0:02:53.8]} 11. Nd3 {[%clk
0:02:33.4]} 11... Bh7 {[%clk 0:02:51.2]} 12. Re1 {[%clk 0:02:30]} 12... a5
{[%clk 0:02:45.4]} 13. e4 {[%clk 0:02:22.1]} 13... dxe4 {[%clk 0:02:44.9]} 14.
Nxe4 {[%clk 0:02:20.9]} 14... Nxe4 {[%clk 0:02:45.4]} 15. Bxe4 {[%clk
0:02:21.8]} 15... Bxe4 {[%clk 0:02:45.8]} 16. Rxe4 {[%clk 0:02:22.2]} 16... Nf6
{[%clk 0:02:46.7]} 17. Rh4 {[%clk 0:02:16.6]} 17... a4 {[%clk 0:02:44.1]} 18.
Bc3 {[%clk 0:01:56.5]} 18... Be7 {[%clk 0:02:38.3]} 19. bxa4 {[%clk 0:01:42.7]}
19... Nd5 {[%clk 0:02:29.4]} 20. cxd5 {[%clk 0:01:42.3]} 20... Bxh4 {[%clk
0:02:29.7]} 21. gxh4 {[%clk 0:01:42.7]} 21... Qxd5 {[%clk 0:02:18.7]} 22. a5
{[%clk 0:01:36.6]} 22... Rfd8 {[%clk 0:02:15.5]} 23. Rb1 {[%clk 0:01:21.7]}
23... Qe4 {[%clk 0:01:52.1]} 24. Nc5 {[%clk 0:01:04.6]} 24... Qxh4 {[%clk
0:01:48.5]} 25. Qf3 {[%clk 0:01:02.5]} 25... Rd5 {[%clk 0:01:47.1]} 26. Rxb7
{[%clk 0:00:35.6]} 26... Rf5 {[%clk 0:01:47.3]} 27. Qe3 {[%clk 0:00:29.9]} 27...
Qg4+ {[%clk 0:01:41.7]} 28. Kh1 {[%clk 0:00:18.2]} 28... Rg5 {[%clk 0:01:31]}
29. Qg3 {[%clk 0:00:08.1]} 29... Qd1+ {[%clk 0:01:31]} 30. Kg2 {[%clk
0:00:08.6]} 30... Rxg3+ {[%clk 0:01:31.5]} 31. hxg3 {[%clk 0:00:09.5]} 31... Qc2
{[%clk 0:01:26.6]} 32. Bb4 {[%clk 0:00:05.9]} 32... Qxa2 {[%clk 0:01:24.8]} 33.
Kf3 {[%clk 0:00:06.3]} 33... Qd5+ {[%clk 0:01:20.3]} 34. Ke3 {[%clk 0:00:06.8]}
34... e5 {[%clk 0:01:20.9]} 35. dxe5 {[%clk 0:00:06.8]} 35... Qxe5+ {[%clk
0:01:21.8]} 36. Kd3 {[%clk 0:00:05.1]} 36... Rd8+ {[%clk 0:01:21.7]} 37. Kc2
{[%clk 0:00:03.7]} 37... Qe2+ {[%clk 0:01:21.4]} 38. Kc3 {[%clk 0:00:02.8]}
38... Qd2+ {[%clk 0:01:21.9]} 39. Kb3 {[%clk 0:00:02.6]} 39... Qd1+ {[%clk
0:01:22.5]} 40. Kc3 {[%clk 0:00:02.7]} 40... Qc1+ {[%clk 0:01:21.3]} 41. Kb3
{[%clk 0:00:02.7]} 41... Qb1+ {[%clk 0:01:17.4]} 42. Ka3 {[%clk 0:00:03.3]}
42... Ra8 {[%clk 0:01:03]} 43. Nb3 {[%clk 0:00:03.3]} 43... Qc2 {[%clk
0:00:55.2]} 44. Rc7 {[%clk 0:00:03.7]} 44... Qxf2 {[%clk 0:00:55.1]} 45. Rxc6
{[%clk 0:00:03.2]} 45... Qxg3 {[%clk 0:00:53.3]} 46. Ka4 {[%clk 0:00:03.7]}
46... Qg4 {[%clk 0:00:52.3]} 47. Nc5 {[%clk 0:00:04]} 47... Rb8 {[%clk
0:00:49.8]} 48. Rb6 {[%clk 0:00:02.9]} 48... Qd1+ {[%clk 0:00:48.6]} 49. Kb5
{[%clk 0:00:02.1]} 49... Qe2+ {[%clk 0:00:49.3]} 50. Ka4 {[%clk 0:00:02.1]}
50... Qe8+ {[%clk 0:00:49.4]} 51. Ka3 {[%clk 0:00:02.3]} 51... Ra8 {[%clk
0:00:45.4]} 52. a6 {[%clk 0:00:02.1]} 52... h5 {[%clk 0:00:45.8]} 53. Rb7 {[%clk
0:00:01.2]} 53... Qc6 {[%clk 0:00:38.5]} 0-1